[Event "Slovakia Open 2022"]
[Site "Bratislava"]
[Date "2022.10.02"]
[Round "8.27"]
[White "Matejka, Simon"]
[Black "Tomcikova, Zuzana"]
[Result "1/2-1/2"]
[ECO "B13"]
[WhiteElo "1422"]
[BlackElo "1796"]
[Annotator "NA COMBH"]
[PlyCount "73"]
[EventDate "2022.09.30"]
[EventCountry "SVK"]
[SourceTitle "playchess.com"]
[Source "ChessBase"]
[SourceQuality "1"]
[TimeControl "2700+10"]

1. e4 {[%emt 0:00:09]} c6 {[%emt 0:00:02]} 2. d4 {[%emt 0:00:29]} d5 {[%emt 0:00:03]} 3. exd5 {[%emt 0:00:03]} cxd5 {[%emt 0:00:02]} 4. Nf3 {[%emt 0:00:16]} Nc6 {[%emt 0:00:06]} 5. Bd3 {[%emt 0:01:12]} Bg4 {[%emt 0:00:55]} 6. c3 {[%emt 0:00:32]} e6 {[%emt 0:00:47]} 7. Bf4 {[%emt 0:01:02]} Bd6 {[%emt 0:00:23]} 8. Bg3 {[%emt 0:01:50]} Qc7 {[%emt 0:01:59]} 9. Nbd2 {[%emt 0:01:55]} Nf6 {[%emt 0:02:41]} 10. Qc2 {[%emt 0:02:22]} Rc8 {[%emt 0:03:04]} 11. Rc1 {[%emt 0:02:28]} Bh5 {[%emt 0:04:39]} 12. O-O {[%emt 0:03:58]} Bg6 {[%emt 0:01:31]} 13. a3 {[%emt 0:00:50]} a6 {[%emt 0:05:50]} 14. Rfe1 {[%emt 0:02:07]} Bxg3 {[%emt 0:00:48]} 15. hxg3 {[%emt 0:01:07]} b5 {[%emt 0:02:49]} 16. Nb3 {[%emt 0:03:40]} Bxd3 {[%emt 0:06:48]} 17. Qxd3 {[%emt 0:00:22]} Ne4 {[%emt 0:02:39]} 18. Nfd2 {[%emt 0:01:49]} Nxd2 {[%emt 0:00:51]} 19. Qxd2 {[%emt 0:00:14]} Na5 {[%emt 0:01:31]} 20. Nc5 {[%emt 0:00:28]} Nc4 {[%emt 0:00:41]} 21. Qg5 {[%emt 0:00:51]} O-O {[%emt 0:00:14]} 22. Rc2 {[%emt 0:01:40]} Ra8 {[%emt 0:01:11]} 23. Rce2 {[%emt 0:00:55]} h6 {[%emt 0:00:12]} 24. Qg4 {[%emt 0:00:39]} Qe7 {[%emt 0:03:12]} 25. f4 {[%emt 0:00:57]} Qd6 {[%emt 0:01:17]} 26. Nxe6 {[%emt 0:03:12]} fxe6 {[%emt 0:00:45]} 27. Rxe6 {[%emt 0:00:13]} Qd7 {[%emt 0:00:14]} 28. f5 {[%emt 0:03:55]} Rae8 {[%emt 0:01:14]} 29. Qg6 {[%emt 0:02:07]} Rxe6 {[%emt 0:01:03]} 30. Rxe6 {[%emt 0:01:16]} Qf7 {[%emt 0:00:06]} 31. Rxa6 {[%emt 0:00:43]} Qxg6 {[%emt 0:00:03]} 32. fxg6 {[%emt 0:00:04]} Rf6 {[%emt 0:00:20]} 33. Ra8+ {[%emt 0:00:06]} Rf8 {[%emt 0:00:02]} 34. Ra7 {[%emt 0:00:22]} Rf6 {[%emt 0:00:38]} 35. Ra8+ {[%emt 0:00:04]} Rf8 {[%emt 0:00:02]} 36. Ra7 {[%emt 0:00:03]} Rf6 {[%emt 0:00:35]} 37. Ra8+ {[%emt 0:00:02]} 1/2-1/2

[Event "Slovakia Open 2022"]
[Site "Bratislava"]
[Date "2022.10.02"]
[Round "8.28"]
[White "Dolnik, Michal"]
[Black "Djubek, Boris"]
[Result "0-1"]
[ECO "C55"]
[WhiteElo "1485"]
[BlackElo "1995"]
[Annotator "TA"]
[PlyCount "122"]
[EventDate "2022.09.30"]
[EventCountry "SVK"]
[SourceTitle "playchess.com"]
[Source "ChessBase"]
[SourceQuality "1"]
[TimeControl "2700+10"]

{[%evp 11,122,-47,35,23,20,-45,-36,-53,-41,-148,-154,-145,-156,-146,-153,-160,-165,-163,-156,-170,-166,-170,-156,-253,-249,-246,-170,-333,-331,-340,-340,-340,-339,-340,-340,-329,-333,-791,-766,-29992,-1747,-5294,-5673,-1575,-889,-1390,-689,-29990,-628,-627,-623,-608,-610,-626,-600,-599,-599,-597,-554,-592,-591,-615,-607,-667,-696,-654,-559,-594,-584,-597,-549,-756,-732,-739,-603,-925,-952,-859,-875,-1281,-1256,-1564,-1454,-2089,-1460,-1982,-1902,-5022,-4035,-12841,-12841,-29984,-29980,-29979,-29979,-12842,-12843,-12843,-12843,-29987,-29988,-29990,-29984,-29984,-29985,-29988,-29989,-29991,-29992,-29992,-29992,-29994,-29995]} 1. e4 {[%emt 0:00:09]} e5 {[%emt 0:00:12]} 2. Nf3 {[%emt 0:00:10]} Nc6 {[%emt 0:00:14]} 3. Bc4 {[%emt 0:00:10]} Be7 {[%emt 0:00:54]} 4. O-O {[%emt 0:00:37]} Nf6 {[%emt 0:00:42][%cal Bg8f6,Bf6h5,Bh5f4][%mdl 32]} 5. Re1 {[%emt 0:00:26]} O-O {[%emt 0:00:16]} 6. c3 {[%emt 0:00:05] [#]} d6 {[%emt 0:00:46]} (6... Nxe4 $1 $15 7. Bd5 (7. Rxe4 d5 $17) (7. Bb5 Nd6) 7... Nf6 8. Bxc6 dxc6 9. Nxe5 Re8) 7. d4 {[%emt 0:00:08] C55: Two Knights: 4 d3, 4 d4 exd4 5 e5 and Max Lange Attack.} Bg4 {[%emt 0:00:56]} 8. h3 {[%emt 0:02:35]} (8. d5 $11 Nb8 9. h3) 8... Bxf3 $15 {[%emt 0:01:01]} 9. gxf3 {[%emt 0:00:10] Black is slightly better.} Nh5 {[%emt 0:00:43]} 10. Kh2 {[%emt 0:01:14]} (10. f4 $1 $15 Nxf4 11. Bxf4 exf4 12. Nd2) 10... Bg5 $17 {[%emt 0:01:49]} 11. Rg1 {[%emt 0:00:56] [#]} Bxc1 $146 {[%emt 0:03:10]} ({Predecessor:} 11... Nf4 12. Be3 Kh8 13. Nd2 Qf6 14. Bf1 Qh6 15. Qb3 Rab8 16. d5 Ne7 17. Bxa7 Nxh3 18. Bxh3 Bxd2 19. Bxb8 Rxb8 {1-0 (34) Sieber,F (1771)-Fishkin,N (2051) Braunfels 2012}) 12. Qxc1 {[%emt 0:00:05] Hoping for Qh6.} Nf4 {[%emt 0:00:16]} (12... exd4 13. Qh6 $14) 13. Qd2 {[%emt 0:01:08]} Qf6 {[%emt 0:03:25][%cal Re5d4]} 14. d5 {[%emt 0:00:49]} Ne7 $40 {[%emt 0:00:21][%cal Bc6e7,Be7g6,Bg6h4,Bh4f3,Bf3g1][%mdl 160] White is in trouble.} 15. Na3 {[%emt 0:00:09]} Neg6 {[%emt 0:00:35][%cal Of4h3]} 16. Rg3 {[%emt 0:00:41]} Nh5 {[%emt 0:01:27]} 17. Rg5 {[%emt 0:01:05] [#]} (17. Rf1 $17 {was worth a try.}) 17... Nh4 $1 $19 {[%emt 0:04:28]} 18. Be2 {[%emt 0:01:17]} Nf4 {[%emt 0:01:33]} 19. Rag1 $2 {[%emt 0:02:13]} (19. Rg3) 19... Nxe2 {[%emt 0:01:41] Pair of Knights!} 20. Rxg7+ {[%emt 0:01:39]} Kh8 {[%emt 0:00:17]} 21. Qxe2 {[%emt 0:00:15]} Nxf3+ {[%emt 0:00:33]} 22. Kh1 {[%emt 0:00:10]} Nxg1 {[%emt 0:00:46]} 23. Rxg1 {[%emt 0:00:17]} Rg8 {[%emt 0:00:23] And now ...Rxg1+ would win.} 24. Rf1 {[%emt 0:00:14]} (24. Rg3) 24... Rg6 {[%emt 0:01:31] aiming for ...Rag8.} 25. Nb5 {[%emt 0:00:12]} a6 {[%emt 0:01:24]} (25... Rag8 $142 26. Nd4 Qg7 27. Qd1 Rg2 28. Qg4 Rxg4 29. Ne2 Qh6 30. Nf4 Rxf4 31. Kh2 Rf3 32. Kh1 Rxh3#) 26. Na3 {[%emt 0:00:23]} Rag8 {[%emt 0:00:18]} 27. Nc2 {[%emt 0:00:06]} Qf4 {[%emt 0:01:45]} 28. Ne1 {[%emt 0:00:20] Against Rg2} Rh6 {[%emt 0:00:42]} (28... Qh6 $142 29. Qf3 Qg7) 29. Qd3 {[%emt 0:00:27] [#]} Rh4 {[%emt 0:02:14]} (29... Qxe4+ $142 $3 {[%mdl 512]} 30. Kh2 {[#]} Rg2+ $3 {[%mdl 512]} 31. Nxg2 Qxd3 32. Ne3 Qe4 33. Kg3 Qh4+ 34. Kf3 Qh5+ 35. Ng4 Qxh3+ 36. Ke2 Qxg4+ 37. Kd3 Qf3+ 38. Kd2 Qg2 39. Re1 Qxf2+ 40. Re2 Qf3 41. a4 Rh3 42. Ke1 Qg3+ 43. Kd2 Qd3+ 44. Ke1 Rf3 45. Rf2 Re3+ 46. Re2 Qxe2#) 30. Ng2 {[%emt 0:02:17]} Qxe4 {[%emt 0:00:28]} 31. Qxe4 {[%emt 0:00:06]} Rxe4 {[%emt 0:00:02][%mdl 4096] Endgame KRR-KRN} 32. Ne3 {[%emt 0:00:01]} Rg5 {[%emt 0:01:07]} 33. Rg1 {[%emt 0:00:28]} Rxg1+ {[%emt 0:01:01]} 34. Kxg1 {[%emt 0:00:04] KR-KN} Rf4 {[%emt 0:00:19]} 35. Kg2 {[%emt 0:00:06]} Kg7 {[%emt 0:00:11]} 36. Kg3 {[%emt 0:00:04]} h5 {[%emt 0:01:22]} 37. h4 {[%emt 0:00:11]} Kf6 {[%emt 0:00:45]} 38. b3 {[%emt 0:00:39]} Ke7 {[%emt 0:00:28]} 39. f3 {[%emt 0:00:45]} c6 {[%emt 0:00:37]} 40. a3 {[%emt 0:00:26]} Rf6 {[%emt 0:00:17]} 41. b4 {[%emt 0:00:29]} Kd7 {[%emt 0:00:34]} 42. a4 {[%emt 0:00:16]} Rg6+ {[%emt 0:00:31]} 43. Kh2 {[%emt 0:00:07]} cxd5 {[%emt 0:00:15]} 44. Nxd5 {[%emt 0:00:04]} f5 {[%emt 0:00:13][%cal Bf7f5,Bf5f4][%mdl 32]} 45. a5 {[%emt 0:00:22]} f4 {[%emt 0:00:36]} 46. Nb6+ {[%emt 0:00:11]} Kc6 {[%emt 0:00:49] White must now prevent ...Rg3.} 47. Nc8 {[%emt 0:00:03]} Rg3 {[%emt 0:00:19]} 48. Ne7+ {[%emt 0:00:16]} Kd7 {[%emt 0:00:26]} 49. Nd5 {[%emt 0:00:03]} Rxf3 {[%emt 0:00:13]} 50. Nf6+ {[%emt 0:00:03]} Ke6 {[%emt 0:00:15]} 51. Nxh5 {[%emt 0:00:03]} Rxc3 {[%emt 0:00:08]} 52. Ng7+ {[%emt 0:00:02]} Kf6 {[%emt 0:00:16]} 53. Ne8+ {[%emt 0:00:07]} Ke7 {[%emt 0:00:30]} 54. Ng7 {[%emt 0:00:03]} e4 {[%emt 0:00:14][%cal Be5e4,Be4e3,Be3e2][%mdl 32] ( -> ...Kf6)} 55. Nf5+ {[%emt 0:00:05]} Ke6 {[%emt 0:00:25] Black mates.} 56. Ng7+ {[%emt 0:00:09]} Kf7 {[%emt 0:00:30]} 57. Nf5 {[%emt 0:00:04]} Rd3 {[%emt 0:01:07]} 58. Nh6+ {[%emt 0:00:05]} Kg6 {[%emt 0:00:13]} 59. Ng8 {[%emt 0:00:04]} e3 {[%emt 0:00:20]} 60. Ne7+ {[%emt 0:00:04]} Kf7 {[%emt 0:00:14]} 61. Nf5 {[%emt 0:00:06]} e2 {[%emt 0:00:08] Black took control after the opening.  Weighted Error Value: White=1.12/Black=0.68} 0-1

[Event "Slovakia Open 2022"]
[Site "Bratislava"]
[Date "2022.10.02"]
[Round "8.29"]
[White "Melih, Mario"]
[Black "Slivka, Vasil"]
[Result "1-0"]
[ECO "E98"]
[WhiteElo "1633"]
[BlackElo "1569"]
[Annotator "NA RC COMBH"]
[PlyCount "85"]
[EventDate "2022.09.30"]
[EventCountry "SVK"]
[SourceTitle "playchess.com"]
[Source "ChessBase"]
[SourceQuality "1"]
[TimeControl "2700+10"]

1. Nf3 {[%emt 0:00:08]} Nf6 {[%emt 0:00:01]} 2. c4 {[%emt 0:00:01]} g6 {[%emt 0:00:02]} 3. d4 {[%emt 0:00:02]} Bg7 {[%emt 0:00:02]} 4. Nc3 {[%emt 0:00:02]} d6 {[%emt 0:00:04]} 5. e4 {[%emt 0:00:02]} O-O {[%emt 0:00:02]} 6. Be2 {[%emt 0:00:02]} e5 {[%emt 0:00:05]} 7. O-O {[%emt 0:00:05]} Nc6 {[%emt 0:00:02]} 8. d5 {[%emt 0:00:03]} Ne7 {[%emt 0:00:02]} 9. Ne1 {[%emt 0:00:08]} Ne8 {[%emt 0:00:07]} 10. Be3 {[%emt 0:00:04]} f5 {[%emt 0:00:04]} 11. f3 {[%emt 0:00:02]} f4 {[%emt 0:00:02]} 12. Bf2 {[%emt 0:00:02]} g5 {[%emt 0:00:07]} 13. Nd3 {[%emt 0:00:04]} Ng6 {[%emt 0:00:05]} 14. b4 {[%emt 0:00:03]} Rf7 {[%emt 0:00:10]} 15. c5 {[%emt 0:00:09]} Bf8 {[%emt 0:00:04]} 16. a4 {[%emt 0:01:36]} h5 {[%emt 0:00:08]} 17. b5 {[%emt 0:00:43]} b6 {[%emt 0:00:24]} 18. cxb6 {[%emt 0:05:17]} axb6 {[%emt 0:00:11]} 19. Nb4 {[%emt 0:03:16]} Ne7 {[%emt 0:01:13]} 20. Nc6 {[%emt 0:00:53]} Nxc6 {[%emt 0:00:03]} 21. dxc6 {[%emt 0:00:05]} Nf6 {[%emt 0:00:04]} 22. Bc4 {[%emt 0:00:14]} g4 {[%emt 0:00:54]} 23. Qb3 {[%emt 0:00:50]} Qe7 {[%emt 0:00:18]} 24. Bxf7+ {[%emt 0:00:11]} Qxf7 {[%emt 0:00:02]} 25. Qxf7+ {[%emt 0:00:03]} Kxf7 {[%emt 0:00:10]} 26. Bh4 {[%emt 0:00:40]} Be6 {[%emt 0:00:12]} 27. Bxf6 {[%emt 0:00:31]} Kxf6 {[%emt 0:00:01]} 28. Nd5+ {[%emt 0:00:10]} Kg5 {[%emt 0:00:00]} 29. Kf2 {[%emt 0:00:11]} Bg7 {[%emt 0:00:02]} 30. Ke2 {[%emt 0:00:07]} Bxd5 {[%emt 0:00:25]} 31. exd5 {[%emt 0:00:24]} Ra5 {[%emt 0:00:10]} 32. Ra2 {[%emt 0:00:10]} h4 {[%emt 0:00:10]} 33. Kd3 {[%emt 0:00:15]} g3 {[%emt 0:00:05]} 34. hxg3 {[%emt 0:00:14]} fxg3 {[%emt 0:00:08]} 35. Ke4 {[%emt 0:00:10]} Kh5 {[%emt 0:00:29]} 36. Kf5 {[%emt 0:00:35]} Bh6 {[%emt 0:00:08]} 37. Ke6 {[%emt 0:00:12]} Bf4 {[%emt 0:01:25]} 38. Kd7 {[%emt 0:00:07]} Ra7 {[%emt 0:00:01]} 39. Kc8 {[%emt 0:00:04]} h3 {[%emt 0:00:02]} 40. gxh3 {[%emt 0:00:08]} Kh4 {[%emt 0:00:01]} 41. Kb8 {[%emt 0:00:15]} g2 {[%emt 0:01:22]} 42. Rg1 {[%emt 0:00:54]} Kxh3 {[%emt 0:00:09]} 43. Kxa7 {[%emt 0:00:05]} 1-0

[Event "Slovakia Open 2022"]
[Site "Bratislava"]
[Date "2022.10.02"]
[Round "8.30"]
[White "Kukan, Michal"]
[Black "Malaschitz, Teodor"]
[Result "1-0"]
[ECO "D35"]
[WhiteElo "1767"]
[BlackElo "1448"]
[Annotator "NA RC COMBH"]
[PlyCount "73"]
[EventDate "2022.09.30"]
[EventCountry "SVK"]
[SourceTitle "playchess.com"]
[Source "ChessBase"]
[SourceQuality "1"]
[TimeControl "2700+10"]

1. c4 {[%emt 0:00:07]} e6 {[%emt 0:00:01]} 2. d4 {[%emt 0:00:10]} d5 {[%emt 0:00:02]} 3. Nc3 {[%emt 0:00:02]} c6 {[%emt 0:00:03]} 4. Nf3 {[%emt 0:00:16]} Nf6 {[%emt 0:00:02]} 5. Bg5 {[%emt 0:00:05]} Be7 {[%emt 0:00:06]} 6. e3 {[%emt 0:00:04]} Nbd7 {[%emt 0:00:02]} 7. cxd5 {[%emt 0:00:18]} exd5 {[%emt 0:00:10]} 8. Bd3 {[%emt 0:00:04]} h6 {[%emt 0:00:51]} 9. Bh4 {[%emt 0:00:03]} Nh7 {[%emt 0:00:14]} 10. Bg3 {[%emt 0:00:20]} Ndf6 {[%emt 0:00:15]} 11. h3 {[%emt 0:00:09]} Bd6 {[%emt 0:00:07]} 12. Be5 {[%emt 0:00:48]} Bxe5 {[%emt 0:00:40]} 13. Nxe5 {[%emt 0:00:05]} Nd7 {[%emt 0:00:25]} 14. Nxd7 {[%emt 0:00:30]} Bxd7 {[%emt 0:00:06]} 15. Bxh7 {[%emt 0:00:13]} Rxh7 {[%emt 0:00:03]} 16. O-O {[%emt 0:00:08]} Qc7 {[%emt 0:00:14]} 17. Rc1 {[%emt 0:00:05]} Be6 {[%emt 0:00:22]} 18. Qc2 {[%emt 0:00:45]} Rh8 {[%emt 0:00:25]} 19. e4 {[%emt 0:00:16]} dxe4 {[%emt 0:00:52]} 20. Qxe4 {[%emt 0:00:33]} O-O-O {[%emt 0:01:10]} 21. Rfd1 {[%emt 0:00:28]} Bd5 {[%emt 0:00:45]} 22. Qf5+ {[%emt 0:01:55]} Qd7 {[%emt 0:01:24]} 23. Qf4 {[%emt 0:00:32]} Qc7 {[%emt 0:01:45]} 24. Qf5+ {[%emt 0:01:24]} Qd7 {[%emt 0:00:30]} 25. Nxd5 {[%emt 0:00:13]} Qxf5 {[%emt 0:00:15]} 26. Ne7+ {[%emt 0:00:04]} Kb8 {[%emt 0:00:13]} 27. Nxf5 {[%emt 0:00:03]} g6 {[%emt 0:00:11]} 28. Ne3 {[%emt 0:00:14]} Rd7 {[%emt 0:00:09]} 29. d5 {[%emt 0:00:08]} cxd5 {[%emt 0:00:02]} 30. Rxd5 {[%emt 0:00:03]} Re7 {[%emt 0:00:04]} 31. Rcd1 {[%emt 0:00:14]} Kc7 {[%emt 0:01:58]} 32. Rb5 {[%emt 0:00:18]} Kb8 {[%emt 0:00:13]} 33. a4 {[%emt 0:00:21]} a6 {[%emt 0:00:04]} 34. Rb6 {[%emt 0:00:10]} Rc8 {[%emt 0:00:27]} 35. a5 {[%emt 0:00:36]} Ka7 {[%emt 0:00:20]} 36. b4 {[%emt 0:00:16]} Rc3 {[%emt 0:00:08]} 37. Nd5 {[%emt 0:00:16]} 1-0

[Event "Slovakia Open 2022"]
[Site "Bratislava"]
[Date "2022.10.02"]
[Round "8.31"]
[White "Nosal, Tobias"]
[Black "Prochazka, Peter"]
[Result "*"]
[ECO "A90"]
[WhiteElo "1601"]
[BlackElo "1792"]
[Annotator "NA RC COMBH"]
[PlyCount "132"]
[EventDate "2022.09.30"]
[EventCountry "SVK"]
[SourceTitle "playchess.com"]
[Source "ChessBase"]
[SourceQuality "1"]
[TimeControl "2700+10"]

1. d4 {[%emt 0:00:04]} e6 {[%emt 0:00:03]} 2. c4 {[%emt 0:00:03]} f5 {[%emt 0:00:02]} 3. Nc3 {[%emt 0:00:08]} Nf6 {[%emt 0:00:21]} 4. g3 {[%emt 0:00:37]} c6 {[%emt 0:00:03]} 5. Bg2 {[%emt 0:00:20]} d5 {[%emt 0:00:01]} 6. Nf3 {[%emt 0:00:56]} Bd6 {[%emt 0:00:05]} 7. O-O {[%emt 0:00:27]} O-O {[%emt 0:00:12]} 8. Re1 {[%emt 0:00:28]} Ne4 {[%emt 0:02:12]} 9. e3 {[%emt 0:05:07]} Bd7 {[%emt 0:00:30]} 10. Qc2 {[%emt 0:04:15]} Be8 {[%emt 0:00:12]} 11. Ne2 {[%emt 0:07:17]} Nd7 {[%emt 0:01:01]} 12. Nf4 {[%emt 0:00:33]} Qe7 {[%emt 0:00:03]} 13. Bd2 {[%emt 0:04:35]} Nxd2 {[%emt 0:01:28]} 14. Nxd2 {[%emt 0:01:28]} Nf6 {[%emt 0:00:14]} 15. Rad1 {[%emt 0:02:34]} b6 {[%emt 0:00:49]} 16. a3 {[%emt 0:03:19]} a5 {[%emt 0:00:15]} 17. Rc1 {[%emt 0:01:20]} Rb8 {[%emt 0:01:11]} 18. cxd5 {[%emt 0:01:15]} exd5 {[%emt 0:00:29]} 19. Nf3 {[%emt 0:04:51]} Ne4 {[%emt 0:02:58]} 20. Nd3 {[%emt 0:00:40]} c5 {[%emt 0:01:34]} 21. Nf4 {[%emt 0:03:45]} Bc6 {[%emt 0:02:31]} 22. Rcd1 {[%emt 0:00:37]} c4 {[%emt 0:00:24]} 23. Bf1 {[%emt 0:00:40]} b5 {[%emt 0:04:05]} 24. Nd2 {[%emt 0:01:54]} Nf6 {[%emt 0:00:42]} 25. Nb1 {[%emt 0:00:20]} b4 {[%emt 0:00:07]} 26. axb4 {[%emt 0:00:30]} axb4 {[%emt 0:00:01]} 27. Bg2 {[%emt 0:00:52]} Ra8 {[%emt 0:00:14]} 28. Qxf5 {[%emt 0:00:28]} Ne4 {[%emt 0:02:39]} 29. Qe6+ {[%emt 0:00:19]} Rf7 {[%emt 0:03:40]} 30. Qxe7 {[%emt 0:00:02]} Rxe7 {[%emt 0:00:06]} 31. Nd2 {[%emt 0:00:07]} Nf6 {[%emt 0:04:18]} 32. Ra1 {[%emt 0:00:16]} Rea7 {[%emt 0:00:51]} 33. Rab1 {[%emt 0:00:03]} Ra2 {[%emt 0:01:56]} 34. e4 {[%emt 0:00:08]} Bxf4 {[%emt 0:00:24]} 35. gxf4 {[%emt 0:00:01]} c3 {[%emt 0:00:53]} 36. bxc3 {[%emt 0:00:17]} Rxd2 {[%emt 0:01:53]} 37. exd5 {[%emt 0:00:01]} Bxd5 {[%emt 0:00:32]} 38. cxb4 {[%emt 0:00:19]} Rxd4 {[%emt 0:01:35]} 39. b5 {[%emt 0:00:15]} Rxf4 {[%emt 0:06:21]} 40. b6 {[%emt 0:00:07]} Rg4 {[%emt 0:01:09]} 41. b7 {[%emt 0:00:27]} Rxg2+ {[%emt 0:00:17]} 42. Kf1 {[%emt 0:00:02]} Rb8 {[%emt 0:00:07]} 43. Re7 {[%emt 0:00:12]} Rxh2 {[%emt 0:02:30]} 44. Rc7 {[%emt 0:00:07]} Rh1+ {[%emt 0:00:26]} 45. Ke2 {[%emt 0:00:05]} Rxb1 {[%emt 0:00:20]} 46. Rc8+ {[%emt 0:00:01]} Kf7 {[%emt 0:00:04]} 47. Rxb8 {[%emt 0:00:04]} Rxb7 {[%emt 0:00:04]} 48. Rc8 {[%emt 0:00:14]} Rb2+ {[%emt 0:00:35]} 49. Ke3 {[%emt 0:00:05]} Be6 {[%emt 0:00:13]} 50. Rc7+ {[%emt 0:00:07]} Kg6 {[%emt 0:00:02]} 51. Rc6 {[%emt 0:00:16]} Bd7 {[%emt 0:00:08]} 52. Rc4 {[%emt 0:00:12]} Ng4+ {[%emt 0:00:14]} 53. Kd4 {[%emt 0:00:32]} Rxf2 {[%emt 0:00:11]} 54. Rc7 {[%emt 0:00:11]} Nf6 {[%emt 0:00:23]} 55. Rc3 {[%emt 0:00:14]} Rd2+ {[%emt 0:00:20]} 56. Kc4 {[%emt 0:00:12]} Be6+ {[%emt 0:00:07]} 57. Kb5 {[%emt 0:00:06]} Rd5+ {[%emt 0:00:06]} 58. Kc6 {[%emt 0:00:13]} Bd7+ {[%emt 0:00:19]} 59. Kb7 {[%emt 0:00:10]} h5 {[%emt 0:00:14]} 60. Rg3+ {[%emt 0:00:08]} Bg4 {[%emt 0:00:03]} 61. Rg1 {[%emt 0:00:07]} h4 {[%emt 0:00:03]} 62. Rh1 {[%emt 0:00:02]} h3 {[%emt 0:00:02]} 63. Rh2 {[%emt 0:00:06]} Kg5 {[%emt 0:00:03]} 64. Kc6 {[%emt 0:00:05]} Kh4 {[%emt 0:00:03]} 65. Kb6 {[%emt 0:00:05]} Kg3 {[%emt 0:00:03]} 66. Rh1 {[%emt 0:00:02]} Bf3 {[%emt 0:00:15]} *

[Event "Slovakia Open 2022"]
[Site "Bratislava"]
[Date "2022.10.02"]
[Round "8.32"]
[White "Nedoba, Jakub"]
[Black "Durovka, Stefan"]
[Result "0-1"]
[ECO "A45"]
[WhiteElo "1160"]
[BlackElo "1783"]
[Annotator "NA RC COMBH"]
[PlyCount "84"]
[EventDate "2022.09.30"]
[EventCountry "SVK"]
[SourceTitle "playchess.com"]
[Source "ChessBase"]
[SourceQuality "1"]
[TimeControl "2700+10"]

1. d4 {[%emt 0:00:06]} d6 {[%emt 0:00:55]} 2. Bf4 {[%emt 0:01:58]} Nf6 {[%emt 0:00:59]} 3. e3 {[%emt 0:00:04]} h6 {[%emt 0:00:17]} 4. c3 {[%emt 0:00:09]} e6 {[%emt 0:00:09]} 5. Nd2 {[%emt 0:00:25]} Nc6 {[%emt 0:00:15]} 6. Bd3 {[%emt 0:00:07]} a6 {[%emt 0:00:08]} 7. Ngf3 {[%emt 0:00:03]} b5 {[%emt 0:00:08]} 8. a3 {[%emt 0:00:17]} Bb7 {[%emt 0:00:05]} 9. Bg3 {[%emt 0:02:06]} g6 {[%emt 0:00:28]} 10. Qb1 {[%emt 0:00:32]} Bg7 {[%emt 0:00:12]} 11. Nh4 {[%emt 0:03:51]} Ne7 {[%emt 0:01:57]} 12. O-O {[%emt 0:00:51]} g5 {[%emt 0:00:23]} 13. Nhf3 {[%emt 0:00:02]} c5 {[%emt 0:00:24]} 14. b3 {[%emt 0:00:45]} Bc6 {[%emt 0:02:06]} 15. c4 {[%emt 0:02:45]} O-O {[%emt 0:01:06]} 16. Re1 {[%emt 0:01:14]} Nh5 {[%emt 0:00:08]} 17. e4 {[%emt 0:02:19]} Nxg3 {[%emt 0:00:05]} 18. hxg3 {[%emt 0:00:03]} Rb8 {[%emt 0:01:04]} 19. e5 {[%emt 0:02:18]} bxc4 {[%emt 0:00:13]} 20. Bxc4 {[%emt 0:02:15]} cxd4 {[%emt 0:00:47]} 21. Bxa6 {[%emt 0:01:51]} dxe5 {[%emt 0:01:18]} 22. Nxe5 {[%emt 0:00:52]} Bb7 {[%emt 0:01:18]} 23. Bc4 {[%emt 0:01:13]} Bd5 {[%emt 0:00:13]} 24. Ndf3 {[%emt 0:01:05]} Qc7 {[%emt 0:00:18]} 25. Bxd5 {[%emt 0:01:47]} Nxd5 {[%emt 0:00:18]} 26. b4 {[%emt 0:09:41]} Rfc8 {[%emt 0:00:47]} 27. Nd3 {[%emt 0:02:48]} Qd6 {[%emt 0:02:25]} 28. Rc1 {[%emt 0:01:20]} Nc3 {[%emt 0:00:07]} 29. Qc2 {[%emt 0:00:57]} e5 {[%emt 0:00:13]} 30. Nc5 {[%emt 0:01:07]} Qd5 {[%emt 0:01:28]} 31. Re1 {[%emt 0:00:40]} Re8 {[%emt 0:00:41]} 32. Ne4 {[%emt 0:00:43]} Rbc8 {[%emt 0:00:40]} 33. Nxc3 {[%emt 0:00:09]} Rxc3 {[%emt 0:00:11]} 34. Qe4 {[%emt 0:01:16]} Qxe4 {[%emt 0:00:35]} 35. Rxe4 {[%emt 0:00:02]} f5 {[%emt 0:00:24]} 36. Ree1 {[%emt 0:00:05]} e4 {[%emt 0:00:06]} 37. Nd2 {[%emt 0:00:13]} Ra8 {[%emt 0:00:26]} 38. a4 {[%emt 0:00:19]} d3 {[%emt 0:00:04]} 39. b5 {[%emt 0:00:13]} Rc2 {[%emt 0:00:03]} 40. Kf1 {[%emt 0:00:20]} Rxd2 {[%emt 0:00:04]} 41. Reb1 {[%emt 0:00:06]} Bxa1 {[%emt 0:00:02]} 42. Rxa1 {[%emt 0:00:04]} Rb2 {[%emt 0:00:07]} 0-1

[Event "Slovakia Open 2022"]
[Site "Bratislava"]
[Date "2022.10.02"]
[Round "8.33"]
[White "Shykhnenko, Hryhorii"]
[Black "Kostic, Ivan"]
[Result "1-0"]
[ECO "C41"]
[WhiteElo "1317"]
[BlackElo "1716"]
[Annotator "NA COMBH"]
[PlyCount "64"]
[EventDate "2022.09.30"]
[EventCountry "SVK"]
[SourceTitle "playchess.com"]
[Source "ChessBase"]
[SourceQuality "1"]
[TimeControl "2700+10"]

1. e4 {[%emt 0:00:02]} e5 {[%emt 0:00:03]} 2. Nf3 {[%emt 0:00:02]} d6 {[%emt 0:00:06]} 3. d4 {[%emt 0:00:01]} exd4 {[%emt 0:00:07]} 4. Nxd4 {[%emt 0:00:02]} Nf6 {[%emt 0:00:17]} 5. Nc3 {[%emt 0:00:04]} h6 {[%emt 0:00:07]} 6. Bf4 {[%emt 0:00:32]} Ng4 {[%emt 0:00:50]} 7. Be2 {[%emt 0:01:38]} Ne5 {[%emt 0:00:04]} 8. O-O {[%emt 0:00:25]} g6 {[%emt 0:01:03]} 9. Qd2 {[%emt 0:02:38]} Bg7 {[%emt 0:00:03]} 10. Rad1 {[%emt 0:01:09]} Bd7 {[%emt 0:00:21]} 11. Bg3 {[%emt 0:00:10]} O-O {[%emt 0:00:26]} 12. f4 {[%emt 0:00:51]} Nec6 {[%emt 0:00:23]} 13. Nxc6 {[%emt 0:01:06]} Bxc6 {[%emt 0:00:19]} 14. b4 {[%emt 0:04:16]} b6 {[%emt 0:01:44]} 15. Nd5 {[%emt 0:01:20]} Nd7 {[%emt 0:03:35]} 16. f5 {[%emt 0:03:58]} Nf6 {[%emt 0:01:28]} 17. fxg6 {[%emt 0:03:26]} Nxe4 {[%emt 0:03:57]} 18. gxf7+ {[%emt 0:00:53]} Rxf7 {[%emt 0:05:53]} 19. Qe1 {[%emt 0:07:33]} Rxf1+ {[%emt 0:00:48]} 20. Bxf1 {[%emt 0:00:10]} Nxg3 {[%emt 0:00:10]} 21. Ne7+ {[%emt 0:04:30]} Kh8 {[%emt 0:00:23]} 22. Nxc6 {[%emt 0:00:10]} Qd7 {[%emt 0:00:14]} 23. Qxg3 {[%emt 0:01:41]} Qxc6 {[%emt 0:00:34]} 24. Bd3 {[%emt 0:00:17]} Qe8 {[%emt 0:00:55]} 25. Re1 {[%emt 0:00:34]} Be5 {[%emt 0:00:36]} 26. Qh4 {[%emt 0:00:38]} Qf8 {[%emt 0:00:46]} 27. Bc4 {[%emt 0:00:53]} Qf6 {[%emt 0:02:11]} 28. Qh3 {[%emt 0:01:43]} Rf8 {[%emt 0:01:27]} 29. Rf1 {[%emt 0:00:24]} Qg7 {[%emt 0:04:02]} 30. Rxf8+ {[%emt 0:02:14]} Qxf8 {[%emt 0:06:03]} 31. Qd7 {[%emt 0:00:10]} Bxh2+ {[%emt 0:00:10]} 32. Kh1 {[%emt 0:01:35]} Be5 {[%emt 0:04:16]} 1-0